Cogmind - Beta 13 @@@ ROGUE MODE // 2024.04.08 @ 10:15:21 Player: Geo Result: Destroyed by B-75 Beast with Heavy Plasma Cannon Performance ------------- Evolutions (5) 2500 Regions Visited (18) 3600 Robots Destroyed (163) 815 Value Destroyed (5796) 5796 Prototype IDs (25) 500 Alien Tech Used (0) 0 Bonus (5512) 5512 TOTAL SCORE: 18723 Bonus ------- High Alert Combat Kills 817 Follower Combat Kills 1343 Entered Garrisons 1200 Used RIF Installer 3000 Aligned with FarCom 300 Friendly Fire -1148 Cogmind --------- Core Integrity 0/1000 Matter 300/300 Energy 310/310 System Corruption 10% Temperature Cool (12) Movement Rolling (165) Ox5 Location -5/Garrison Parts ------- > --- POWER (1) -------- Reinforced Fission Core > --- PROPULSION (2) --- Armored Wheel > --- UTILITY (12) ----- High-capacity Storage Unit Improved Terrain Scan Processor Improved Launcher Guidance Computer Hacking Suite Relay Coupler [NC] (31) Relay Coupler [Swarmer] (33) Relay Coupler [Grunt] (19) Relay Coupler [Sentry] (3) > --- WEAPON (2) ------- Chainsword > --- INVENTORY (20) --- Light Angular Momentum Engine Armored Wheel Armored Wheel High-capacity Storage Unit Relay Coupler [NC] (30) Relay Coupler [NC] (35) Relay Coupler [NC] (33) Relay Coupler [NC] (32) Relay Coupler [Demolisher] (26) Relay Coupler [Hunter] (20) Relay Coupler [Hunter] (20) Relay Coupler [Hunter] (26) Long-range Missile Launcher Long-range Missile Launcher Improved Remote Datajack Improved Remote Datajack Improved Remote Datajack Improved Remote Datajack Greatsword Peak State ------------ > --- POWER ------------ Light Nuclear Core > --- PROPULSION ------- Nuclear Pulse Thruster Field Propulsion Drive > --- UTILITY ---------- Improved Terrain Scan Processor Improved Launcher Guidance Computer Improved Power Shielding Improved Light Armor Plating Advanced Hacking Suite Relay Coupler [Swarmer] Relay Coupler [Swarmer] Relay Coupler [Grunt] Relay Coupler [Sentry] Relay Coupler [Sentry] Relay Coupler [Demolisher] Relay Coupler [Hunter] > --- WEAPON ----------- Improved Remote Datajack Chainsword > --- INVENTORY -------- Relay Coupler [Swarmer] Relay Coupler [Duelist] Thief Drone Bay Variable Charge Gun [Rating: 73] Favorites ----------- Power Nuclear Core Engine Ion Engine Power Core Nuclear Core Propulsion Light Treads Treads Light Treads Leg Aluminum Leg Wheel Armored Wheel Hover Unit Combat Linear Gravjet Flight Unit Nuclear Pulse Thruster Utility Large Storage Unit Device Cloak of Protection Storage Large Storage Unit Processor Improved Launcher Guidance Computer Hackware Relay Coupler [Sentry] Protection Light Armor Plating Weapon Heavy Assault Rifle Energy Gun Variable Charge Gun Ballistic Gun Heavy Assault Rifle Launcher Mini Grenade Launcher Special Weapon Improved Remote Datajack Impact Weapon Flail Slashing Weapon Greatsword Special Melee Weapon Improved Datajack Build | -11 -10 -10 -9 -9 -9 -8 -8 -8 -7 -7 -7 -7 -6 -6 -5 -5 -5 -5 ------- Run | Yrd Mat Min Mat Min Exi Min Mat Gar Fac Gar Fac Gar Fac Gar Fac Gar Fac Gar Slots Evolved 10 | . . . 2 . . . 2 . 2 . . . 2 . 2 . . . Power . | . . . . . . . . . . . . . . . . . . . Propulsion . | . . . . . . . . . . . . . . . . . . . Utility 10 | . . . 2 . . . 2 . 2 . . . 2 . 2 . . . Weapon . | . . . . . . . . . . . . . . . . . . . Parts Attached 188 | 1 5 1 37 8 1 . 10 30 2 12 2 7 1 8 23 13 11 16 Power 11 | . . . 3 1 . . . 1 . 1 . . . . 2 . 1 2 Engine 7 | . . . 3 1 . . . 1 . . . . . . . . 1 1 Core 4 | . . . . . . . . . . 1 . . . . 2 . . 1 Reactor . | . . . . . . . . . . . . . . . . . . . Propulsion 33 | . 2 . 9 2 . . 1 4 . . . 1 . 1 5 2 3 3 Treads 16 | . 2 . 9 2 . . 1 1 . . . . . 1 . . . . Leg . | . . . . . . . . . . . . . . . . . . . Wheel 9 | . . . . . . . . 3 . . . 1 . . 2 . . 3 Hover 2 | . . . . . . . . . . . . . . . . . 2 . Flight 6 | . . . . . . . . . . . . . . . 3 2 1 . Utility 60 | . 2 1 8 2 1 . 4 6 1 6 1 . 1 4 6 8 5 4 Device 6 | . . 1 2 . 1 . . . . . . . . . . 1 1 . Storage 4 | . 1 . . . . . . 1 . . . . . . . . 1 1 Processor 3 | . . . . 1 . . . 1 . . . . . . 1 . . . Hackware 22 | . . . . . . . 1 3 1 5 1 . . 2 2 5 1 1 Protection 25 | . 1 . 6 1 . . 3 1 . 1 . . 1 2 3 2 2 2 Artifact . | . . . . . . . . . . . . . . . . . . . Weapon 84 | 1 1 . 17 3 . . 5 19 1 5 1 6 . 3 10 3 2 7 Energy Gun 5 | 1 . . 1 . . . . 1 . . . . . . 2 . . . Energy Cannon . | . . . . . . . . . . . . . . . . . . . Ballistic Gun 21 | . 1 . 10 2 . . 3 5 . . . . . . . . . . Ballistic Cannon . | . . . . . . . . . . . . . . . . . . . Launcher 25 | . . . 4 1 . . 2 4 . 3 . 3 . 1 3 . . 4 Special Weapon 12 | . . . . . . . . . 1 . 1 2 . 2 4 2 . . Impact Weapon 10 | . . . 2 . . . . 5 . 2 . 1 . . . . . . Slashing Weapon 9 | . . . . . . . . 2 . . . . . . 1 1 2 3 Piercing Weapon . | . . . . . . . . . . . . . . . . . . . Special Melee Weapon 2 | . . . . . . . . 2 . . . . . . . . . . Unidentified Prototypes 2 | . . 1 1 . . . . . . . . . . . . . . . Parts Lost 55 | . . . 10 6 . . 3 2 . 1 . 3 . 2 9 9 . 10 Power 7 | . . . 3 1 . . 1 . . . . . . 1 . . . 1 Propulsion 15 | . . . 1 1 . . . . . . . 1 . 1 5 4 . 2 Utility 24 | . . . 5 2 . . . 2 . 1 . 2 . . 2 4 . 6 Weapon 9 | . . . 1 2 . . 2 . . . . . . . 2 1 . 1 Highest Loss Streak 7 | . . . 5 6 . . 2 1 . 1 . 2 . 2 5 4 . 7 To Critical Strikes . | . . . . . . . . . . . . . . . . . . . Average Slot Usage (%) 89 | . 99 87 90 82 94 100 82 85 89 98 100 92 70 82 80 72 70 92 Engine 4 | . 14 14 9 10 11 11 3 . 7 . . . . . . . . 1 Core 1 | . . . . . . . . . . 6 7 7 6 3 2 3 . 2 Treads 11 | . 20 28 21 21 22 22 18 14 . . . . . 2 3 . . . Wheel 4 | . . . . . . . . . 15 15 15 15 13 9 3 . . 9 Device 2 | . . 1 4 3 6 11 7 . . . . . . . . . 5 2 Storage 9 | . 20 14 11 11 11 11 9 9 7 7 7 7 6 6 3 . 3 10 Processor 7 | . . . . 3 11 11 9 12 15 14 7 7 6 6 9 11 11 11 Hackware 13 | . . . . . . . 1 11 12 21 38 32 20 27 31 38 28 25 Protection 13 | . 7 1 21 10 11 11 16 20 15 14 7 5 4 11 13 1 2 16 Ballistic Gun 10 | . 25 28 21 21 22 22 15 6 . . . . . . . . . . Launcher 1 | . . . . . . . 2 . . 6 1 4 6 2 1 . . 1 Impact Weapon 2 | . . . . . . . . 7 . 6 7 7 6 6 3 . . . Naked Turns . | . . . . . . . . . . . . . . . . . . . Heaviest Build 96 | 13 33 28 40 37 41 41 41 66 67 69 61 61 52 55 64 13 19 96 Greatest Support 70 | 20 40 40 40 40 40 40 42 70 24 24 24 24 24 24 13 13 28 28 Greatest Overweight (x) 6 | . 1 . . 1 1 1 1 4 2 2 2 4 2 4 6 1 . 4 Average Overweight (x) . | . . . . . . 1 . . 2 2 2 2 2 2 1 . . 2 Largest Inventory Capacity 20 | 8 15 15 15 15 15 15 15 20 20 20 20 20 20 20 20 5 5 20 Average Capacity 15 | 8 14 15 15 15 15 15 15 16 20 20 20 20 20 20 14 5 5 17 Most Carried 20 | 6 14 15 15 15 14 14 15 20 20 20 20 19 18 18 18 5 5 20 Average Carried 14 | 6 9 14 14 13 14 14 14 16 19 19 19 18 18 16 12 4 2 11 Final Capacity 20 | 8 15 15 15 15 15 15 15 20 20 20 20 20 20 20 5 5 5 20 Final Carried 20 | 6 14 15 15 14 14 14 15 20 19 20 19 18 18 16 5 4 5 20 Class Distribution -------------------- 30% | Scavenger-Mutant 26% | Bothacker-Mutant 19% | Mutant 17% | Botlord-Mutant 3% | Hacker-Mutant Dominant Class ---------------- Mutant | -10/Materials Mutant | -10/Mines Scavenger-Mutant | -9/Materials Scavenger-Mutant | -9/Mines Scavenger-Mutant | -9/Exiles Scavenger-Mutant | -8/Mines Mutant | -8/Materials Bothacker-Mutant | -8/Garrison Bothacker-Mutant | -7/Factory Bothacker-Mutant | -7/Garrison Bothacker-Mutant | -7/Factory Botlord-Mutant | -7/Garrison Botlord-Mutant | -6/Factory Botlord-Mutant | -6/Garrison Botlord-Mutant | -5/Factory Botlord-Mutant | -5/Garrison Hacker-Mutant | -5/Factory Scavenger-Mutant | -5/Garrison Resources | -11 -10 -10 -9 -9 -9 -8 -8 -8 -7 -7 -7 -7 -6 -6 -5 -5 -5 -5 ----------- Run | Yrd Mat Min Mat Min Exi Min Mat Gar Fac Gar Fac Gar Fac Gar Fac Gar Fac Gar Matter Collected 3845 | 200 159 . 622 234 . 31 163 516 90 365 10 130 . 164 197 290 68 606 Remotely . | . . . . . . . . . . . . . . . . . . . Salvage Created 4678 | . 452 . 1090 113 . 49 262 558 . 560 . 205 . 77 293 86 59 874 Parts 287 | . 32 . 81 11 . 6 22 27 . 28 . 27 . 4 20 3 4 22 Haulers Intercepted 2 | . 1 . 1 . . . . . . . . . . . . . . . Recyclers Shooed 1 | . 1 . . . . . . . . . . . . . . . . . Parts Field Recycled . | . . . . . . . . . . . . . . . . . . . Retrieved Matter . | . . . . . . . . . . . . . . . . . . . Parts Self-Destructed . | . . . . . . . . . . . . . . . . . . . Prevented . | . . . . . . . . . . . . . . . . . . . Kills | -11 -10 -10 -9 -9 -9 -8 -8 -8 -7 -7 -7 -7 -6 -6 -5 -5 -5 -5 ------- Run | Yrd Mat Min Mat Min Exi Min Mat Gar Fac Gar Fac Gar Fac Gar Fac Gar Fac Gar Combat Hostiles Destroyed 135 | . 10 . 31 6 . 3 10 16 . 17 . 14 . 4 7 . . 17 Melee 7 | . . . . . . . . 1 . 1 . . . . . . . 5 Guns 38 | . 10 . 14 5 . 3 3 2 . . . . . . 1 . . . AOE 89 | . . . 17 1 . . 7 13 . 16 . 14 . 4 5 . . 12 Classes Destroyed 14 | . 5 . 4 1 . . . 2 . 2 . . . . . . . . Worker 6 | . . . 2 . . . . . . . . . . . 2 . 2 . Builder 2 | . . . 1 . . . . . . . . . . . 1 . . . Tunneler 3 | . . . 1 . . . . . . . . . . . 1 . 1 . Hauler 2 | . 1 . 1 . . . . . . . . . . . . . . . Recycler 5 | . 2 . 3 . . . . . . . . . . . . . . . Watcher 5 | . 1 . 2 . . . 1 . . . . . . . 1 . . . Swarmer 76 | . 5 . 16 4 . 3 4 6 . 4 . 14 . 3 5 . . 12 Grunt 36 | . 5 . 7 . . . 4 5 . 11 . . . 1 1 . . 2 Sentry 17 | . . . 8 . . . 2 3 . 1 . . . . 1 1 . 1 Demolisher 2 | . . . . 2 . . . . . . . . . . . . . . Specialist 2 | . . . . . . . . . . 2 . . . . . . . . Hunter 2 | . . . . . . . . . . 1 . . . . . . . 1 Programmer 2 | . . . . . . . . 1 . . . . . . . . . 1 Behemoth 2 | . . . . . . . . 2 . . . . . . . . . . Infiltrator 1 | . . . . . . . . . . . . . . 1 . . . . Best Kill Streak 12 | . 4 . 12 4 . 3 5 8 . 6 . 4 . 3 8 . 2 6 Combat Bots Only 8 | . 2 . 8 4 . 3 4 8 . 6 . 4 . 3 5 . . 6 Max Kills in Single Turn 5 | . 2 . 5 1 . 1 3 5 . 4 . 3 . 2 4 1 1 4 Gunslinging 1 | . 1 . . . . . . . . . . . . . . . . . Exploded 5 | . . . 3 1 . . 2 5 . 4 . 3 . 2 2 . . 4 Melee 1 | . . . . . . . . 1 . 1 . . . . . . . 1 Uniques/NPCs Destroyed . | . . . . . . . . . . . . . . . . . . . Combat | -11 -10 -10 -9 -9 -9 -8 -8 -8 -7 -7 -7 -7 -6 -6 -5 -5 -5 -5 -------- Run | Yrd Mat Min Mat Min Exi Min Mat Gar Fac Gar Fac Gar Fac Gar Fac Gar Fac Gar Hostile Shots Fired 743 | . 54 . 160 23 . 11 52 56 . 30 9 35 . 10 125 77 2 99 Missed 221 | . 10 . 41 4 . 4 16 10 . 12 2 10 . 1 52 32 1 26 Damage Taken 8722 | . 448 . 1580 587 . 58 508 888 . 309 71 304 . 214 1390 785 23 1557 Core 1544 | . 74 . 161 106 . . 25 36 . 36 16 41 . 36 418 459 23 113 Absorbed by Shields 299 | . . . . . . . . . . 98 . 69 . 17 . 67 . 48 Reduced by Siege Mode 73 | . . . . . . . . 73 . . . . . . . . . . Redirected to Shielding 78 | . 3 . . . . . . . . . . . . 28 24 23 . . Core Remaining (%) 78 | 100 . 70 . . . 33 . 88 . . . 86 . 95 . . . . Volleys Fired 282 | . 56 . 65 13 . 6 32 19 2 15 3 9 . 13 29 9 . 11 Largest 2 | . 2 . 2 2 . 2 2 2 1 1 1 1 . 1 1 1 . 2 Hottest 245 | . 70 . 46 53 . 43 43 245 7 46 7 46 . 30 225 7 . 86 Shots Fired 431 | . 112 . 117 24 . 12 52 20 2 15 3 9 . 13 29 9 . 14 Gun 313 | . 112 . 105 23 . 12 45 5 . . . . . . 11 . . . Cannon . | . . . . . . . . . . . . . . . . . . . Launcher 83 | . . . 12 1 . . 7 15 . 15 . 7 . 9 3 . . 14 Special 35 | . . . . . . . . . 2 . 3 2 . 4 15 9 . . Kinetic 299 | . 111 . 105 23 . 12 45 3 . . . . . . . . . . Thermal 14 | . 1 . . . . . . 2 . . . . . . 11 . . . Explosive 83 | . . . 12 1 . . 7 15 . 15 . 7 . 9 3 . . 14 Electromagnetic . | . . . . . . . . . . . . . . . . . . . Robot Hit Streak 33 | . 8 . 33 5 . 3 15 7 3 5 5 3 . 5 12 13 . 18 Robot Miss Streak 6 | . 6 . 2 3 . 2 2 2 . 1 2 . . 1 3 . . . Penetration Max . | . . . . . . . . . . . . . . . . . . . Secondary Targets 2 | . 1 . 1 . . . . . . . . . . . . . . . Max Gunslinging Chain 1 | . 1 . 1 . . . . . . . . . . . . . . . Shots Hit Robots 336 | . 56 . 84 14 . 6 39 36 3 9 1 3 . 5 22 12 4 42 Core Hits 275 | . 29 . 60 10 . 3 19 31 . 29 . 19 . 17 16 2 2 38 Critical Kills 3 | . 1 . 1 . . . . 1 . . . . . . . . . . Critical Parts Destroyed 5 | . . . . . . . . 4 . . . . . . 1 . . . Critical Strikes 26 | . 1 . 1 . . . . 12 . . . . . . 1 1 . 10 Destroy 3 | . 1 . 1 . . . . 1 . . . . . . . . . . Smash 5 | . . . . . . . . 4 . . . . . . 1 . . . Sever 18 | . . . . . . . . 7 . . . . . . . 1 . 10 Melee Attacks 148 | . . . 1 . . . . 65 1 14 . . . . 2 5 6 54 Impact 69 | . . . 1 . . . . 52 . 14 . . . . 2 . . . Slashing 77 | . . . . . . . . 11 1 . . . . . . 5 6 54 Piercing . | . . . . . . . . . . . . . . . . . . . Sneak Attacks 16 | . . . . . . . . 4 1 . . . . . 2 3 4 2 Combat Hostiles 4 | . . . . . . . . . . . . . . . 2 . . 2 Follow-up Attacks . | . . . . . . . . . . . . . . . . . . . Damage Inflicted 16359 | . 461 . 2546 227 . 81 1042 2469 34 1897 . 1047 . 772 786 222 372 4403 Guns 2490 | . 452 . 946 196 . 81 508 56 . . . . . . 251 . . . Cannons . | . . . . . . . . . . . . . . . . . . . Explosions 9590 | . . . 1575 21 . . 522 1423 . 1835 . 1047 . 772 422 . . 1973 Melee 4217 | . . . . . . . . 990 34 62 . . . . 113 216 372 2430 Ramming 62 | . 9 . 25 10 . . 12 . . . . . . . . 6 . . Kinetic 2209 | . 452 . 946 196 . 81 508 26 . . . . . . . . . . Thermal 281 | . . . . . . . . 30 . . . . . . 251 . . . Explosive 9590 | . . . 1575 21 . . 522 1423 . 1835 . 1047 . 772 422 . . 1973 Electromagnetic . | . . . . . . . . . . . . . . . . . . . Impact 855 | . . . . . . . . 680 . 62 . . . . 113 . . . Slashing 3362 | . . . . . . . . 310 34 . . . . . . 216 372 2430 Piercing . | . . . . . . . . . . . . . . . . . . . Highest Corruption 10 | . 2 2 . . . . 2 2 . . . . . . 3 3 8 10 Average Corruption 3 | . 2 2 . . . . 1 2 . . . . . . 2 3 3 8 Corruption Purged . | . . . . . . . . . . . . . . . . . . . Corruption Blocked . | . . . . . . . . . . . . . . . . . . . Effects 71 | . 7 3 . . . . 1 16 . . . . . . 6 5 3 30 Message Errors 16 | . 1 1 . . . . . 4 . . . . . . . 1 1 8 Matter Fused 17 | . 3 2 . . . . 1 5 . . . . . . 1 . . 5 Heat Flow Errors 6 | . . . . . . . . 2 . . . . . . 2 . . 2 Energy Discharges 15 | . 1 . . . . . . 3 . . . . . . 1 1 . 9 Data Loss (minor) 10 | . . . . . . . . 2 . . . . . . . 2 2 4 Data Loss (major) 4 | . . . . . . . . . . . . . . . 1 1 . 2 Alerts 3 | . 2 . . . . . . . . . . . . . 1 . . . Overload Shots 5 | . . . . . . . . 2 . . . . . . 3 . . . Overflow Damage 730 | . . . 16 . . . 39 239 . . . 12 . 46 71 . 94 213 Projectiles . | . . . . . . . . . . . . . . . . . . . Explosions 177 | . . . 16 . . . 39 . . . . 12 . 46 37 . . 27 Melee 553 | . . . . . . . . 239 . . . . . . 34 . 94 186 Knockbacks . | . . . . . . . . . . . . . . . . . . . Impact . | . . . . . . . . . . . . . . . . . . . Kinetic . | . . . . . . . . . . . . . . . . . . . Secondary . | . . . . . . . . . . . . . . . . . . . Self-Inflicted Damage 452 | . . . 93 . . . . 61 . 102 . 62 . 33 21 3 . 77 Shots 18 | . . . 4 . . . . 3 . 4 . 2 . 1 1 . . 3 Rammed 10 | . 2 . 4 2 . . 1 . . . . . . . . 1 . . Targets Rammed 12 | . 2 . 6 2 . . 1 . . . . . . . . 1 . . Kicked . | . . . . . . . . . . . . . . . . . . . Crushed 2 | . . . 2 . . . . . . . . . . . . . . . Highest Temperature 390 | . 36 . 37 . . . 15 240 . 56 . 2 . . 390 . . 215 Average Temperature 72 | . 11 . 9 . . . 7 93 . 25 . 1 . . 194 . . 58 Received Heat Transfer 2183 | . 189 . 441 . . . 243 300 . 99 12 30 . 45 444 75 9 296 Effects 2 | . . . . . . . . . . . . . . . 2 . . . Shutdowns 1 | . . . . . . . . . . . . . . . 1 . . . Energy Bleed 1 | . . . . . . . . . . . . . . . 1 . . . Siege Activations 1 | . . . . . . . . 1 . . . . . . . . . . Total Turns 19 | . . . . . . . . 19 . . . . . . . . . . Longest Duration 19 | . . . . . . . . 19 . . . . . . . . . . Robots Corrupted . | . . . . . . . . . . . . . . . . . . . Combat Hostiles . | . . . . . . . . . . . . . . . . . . . Parts Fried 1 | . . . . . . . . 1 . . . . . . . . . . Impact Corruptions 7 | . . . . . . . . 6 . . . . . . 1 . . . Robots Melted . | . . . . . . . . . . . . . . . . . . . Combat Hostiles . | . . . . . . . . . . . . . . . . . . . Parts Melted 1 | . . . . . . . . . . . . . . . . . . 1 Heat Transferred 422 | . . . . . . . . 50 . . . . . . 372 . . . Parts Sabotaged . | . . . . . . . . . . . . . . . . . . . Parts Stolen . | . . . . . . . . . . . . . . . . . . . Parts Stripped . | . . . . . . . . . . . . . . . . . . . Power Chain Reactions . | . . . . . . . . . . . . . . . . . . . Alert | -11 -10 -10 -9 -9 -9 -8 -8 -8 -7 -7 -7 -7 -6 -6 -5 -5 -5 -5 ------- Run | Yrd Mat Min Mat Min Exi Min Mat Gar Fac Gar Fac Gar Fac Gar Fac Gar Fac Gar Peak Influence 1064 | . 193 15 741 250 . 70 342 800 435 957 525 1064 558 882 738 752 452 838 Initial 558 | . . 15 5 246 . . . 103 420 243 501 361 558 390 462 516 373 316 Average 400 | . 62 15 374 171 . 27 114 414 355 680 513 654 558 688 571 554 391 579 Maximum Alert Level 3 | . . . 3 1 . . 1 3 2 3 2 3 2 3 3 3 2 3 Low Security (%) 28 | 100 100 100 38 42 . 100 65 12 . . . . . . . . . . Level 1 24 | . . . 8 57 . . 34 59 69 16 . 24 . 16 . . 76 30 Level 2 30 | . . . 38 . . . . 15 30 18 100 39 100 32 99 94 23 32 Level 3 16 | . . . 14 . . . . 13 . 64 . 35 . 51 . 5 . 37 Level 4 . | . . . . . . . . . . . . . . . . . . . Level 5 . | . . . . . . . . . . . . . . . . . . . High Security . | . . . . . . . . . . . . . . . . . . . Max Security . | . . . . . . . . . . . . . . . . . . . Squads Dispatched 9 | . 1 . 2 . . . 2 . 1 . 1 . . . 2 . . . Investigation . | . . . . . . . . . . . . . . . . . . . Extermination . | . . . . . . . . . . . . . . . . . . . Reinforcement 7 | . 1 . 2 . . . 2 . 1 . 1 . . . . . . . Assault 2 | . . . . . . . . . . . . . . . 2 . . . Garrison . | . . . . . . . . . . . . . . . . . . . Intercept . | . . . . . . . . . . . . . . . . . . . Searches Triggered . | . . . . . . . . . . . . . . . . . . . Construction Impeded 1 | . . . . . . . 1 . . . . . . . . . . . Haulers Reinforced . | . . . . . . . . . . . . . . . . . . . Active Scanning Responses . | . . . . . . . . . . . . . . . . . . . Cargo Convoy Interrupts . | . . . . . . . . . . . . . . . . . . . Alert ID Control Effect 7 | . . . . . . . . . . . . . . . . . . 7 Stealth | -11 -10 -10 -9 -9 -9 -8 -8 -8 -7 -7 -7 -7 -6 -6 -5 -5 -5 -5 --------- Run | Yrd Mat Min Mat Min Exi Min Mat Gar Fac Gar Fac Gar Fac Gar Fac Gar Fac Gar Distress Signals 15 | . 4 . 5 . . . 2 . . . 1 . . . 3 . . . Communications Jammed 1 | . . . . . . . . . . . . . . . 1 . . . Distress Signals 1 | . . . . . . . . . . . . . . . 1 . . . Times Spotted 263 | . 20 . 49 6 . 3 17 18 2 21 3 20 . 14 44 25 4 17 Peak Tracking Total 12 | . 4 . 12 4 . 1 7 8 1 7 2 5 . 6 10 9 2 5 Tactical Retreats 17 | . 2 . 1 . . . 1 . . 1 1 . . . 6 5 . . Traps | -11 -10 -10 -9 -9 -9 -8 -8 -8 -7 -7 -7 -7 -6 -6 -5 -5 -5 -5 ------- Run | Yrd Mat Min Mat Min Exi Min Mat Gar Fac Gar Fac Gar Fac Gar Fac Gar Fac Gar Traps Triggered 25 | . 1 . 1 . . . 2 3 . 7 . 4 . 1 2 2 1 1 Indirectly . | . . . . . . . . . . . . . . . . . . . Trap Hack Attempts . | . . . . . . . . . . . . . . . . . . . Triggered . | . . . . . . . . . . . . . . . . . . . Disarmed . | . . . . . . . . . . . . . . . . . . . Reprogrammed . | . . . . . . . . . . . . . . . . . . . Reused . | . . . . . . . . . . . . . . . . . . . Traps Extracted . | . . . . . . . . . . . . . . . . . . . Installed . | . . . . . . . . . . . . . . . . . . . Triggered . | . . . . . . . . . . . . . . . . . . . Machines | -11 -10 -10 -9 -9 -9 -8 -8 -8 -7 -7 -7 -7 -6 -6 -5 -5 -5 -5 ---------- Run | Yrd Mat Min Mat Min Exi Min Mat Gar Fac Gar Fac Gar Fac Gar Fac Gar Fac Gar Machines Disabled 15 | . . . 2 . . . 1 2 . 3 . . . . 2 2 . 3 Max in Single Turn 1 | . . . 1 . . . 1 1 . 1 . . . . 1 1 . 1 Garrison Relay 9 | . . . . . . . . 3 . 3 . . . . . 1 . 2 Machines Repaired . | . . . . . . . . . . . . . . . . . . . Machines Dismantled . | . . . . . . . . . . . . . . . . . . . Machines Sabotaged . | . . . . . . . . . . . . . . . . . . . Overloaded Fab Kills . | . . . . . . . . . . . . . . . . . . . Hacking | -11 -10 -10 -9 -9 -9 -8 -8 -8 -7 -7 -7 -7 -6 -6 -5 -5 -5 -5 --------- Run | Yrd Mat Min Mat Min Exi Min Mat Gar Fac Gar Fac Gar Fac Gar Fac Gar Fac Gar Machines Accessed 29 | . 3 1 8 . 1 . 3 . 2 1 1 2 1 1 1 2 1 1 Terminals 18 | . 2 . 7 . . . 2 . . 1 . 2 . 1 . 2 . 1 Fabricators 1 | . . . . . . . . . 1 . . . . . . . . . Repair Stations . | . . . . . . . . . . . . . . . . . . . Recycling Units 2 | . 1 . 1 . . . . . . . . . . . . . . . Scanalyzers . | . . . . . . . . . . . . . . . . . . . Garrison Access 6 | . . . . . . . 1 . 1 . 1 . 1 . 1 . 1 . Total Hacks 52 | . 5 1 19 . 1 . 5 . 3 3 1 5 1 1 1 3 1 2 Successful 31 | . 2 1 7 . 1 . 5 . 2 1 1 3 1 1 1 2 1 2 Failed 21 | . 3 . 12 . . . . . 1 2 . 2 . . . 1 . . Catastrophic 5 | . 2 . 3 . . . . . . . . . . . . . . . Database Lockouts . | . . . . . . . . . . . . . . . . . . . Manual 22 | . 5 . 9 . 1 . 4 . . . . 2 . . . . . 1 Terminals 37 | . 3 . 16 . . . 4 . . 3 . 5 . 1 . 3 . 2 Fabricators 2 | . . . . . . . . . 2 . . . . . . . . . Repair Stations . | . . . . . . . . . . . . . . . . . . . Recycling Units 5 | . 2 . 3 . . . . . . . . . . . . . . . Scanalyzers . | . . . . . . . . . . . . . . . . . . . Garrison Access 6 | . . . . . . . 1 . 1 . 1 . 1 . 1 . 1 . Terminal Hacks 17 | . . 1 5 . 1 . 1 . . 1 . 3 . 1 . 2 . 2 Open Door 2 | . . 1 . . . . . . . . . . . . . 1 . . Branch Access Points 1 | . . . 1 . . . . . . . . . . . . . . . Emergency Access Points 1 | . . . 1 . . . . . . . . . . . . . . . Garrison Index 1 | . . . . . . . 1 . . . . . . . . . . . Hauler Manifests 1 | . . . 1 . . . . . . . . . . . . . . . Zone Layout 3 | . . . 2 . . . . . . . . 1 . . . . . . Garrison Registry 4 | . . . . . . . . . . . . 1 . 1 . 1 . 1 Patrol Navigation 1 | . . . . . . . . . . 1 . . . . . . . . Security Stations 2 | . . . . . . . . . . . . 1 . . . . . 1 Derelict Proto ID Bank 1 | . . . . . 1 . . . . . . . . . . . . . Fabricator Hacks 1 | . . . . . . . . . 1 . . . . . . . . . Build 1 | . . . . . . . . . 1 . . . . . . . . . Repair Station Hacks . | . . . . . . . . . . . . . . . . . . . Recycling Unit Hacks . | . . . . . . . . . . . . . . . . . . . Scanalyzer . | . . . . . . . . . . . . . . . . . . . Garrison Access Hacks 6 | . . . . . . . 1 . 1 . 1 . 1 . 1 . 1 . Unlock Access 6 | . . . . . . . 1 . 1 . 1 . 1 . 1 . 1 . Unauthorized Hacks 7 | . 2 . 2 . . . 3 . . . . . . . . . . . Terminals 3 | . . . . . . . 3 . . . . . . . . . . . Botnet 2 | . . . . . . . 2 . . . . . . . . . . . Operators 1 | . . . . . . . 1 . . . . . . . . . . . Fabricators . | . . . . . . . . . . . . . . . . . . . Repair Stations . | . . . . . . . . . . . . . . . . . . . Recycling Units 4 | . 2 . 2 . . . . . . . . . . . . . . . Reject 2 | . 1 . 1 . . . . . . . . . . . . . . . Mask 2 | . 1 . 1 . . . . . . . . . . . . . . . Scanalyzers . | . . . . . . . . . . . . . . . . . . . Garrison Access . | . . . . . . . . . . . . . . . . . . . Data Cores Recovered . | . . . . . . . . . . . . . . . . . . . Used . | . . . . . . . . . . . . . . . . . . . Hacking Detections 19 | . 2 . 8 . . . . . 1 1 1 2 1 . 1 . 1 1 Full Trace Events . | . . . . . . . . . . . . . . . . . . . Feedback Events . | . . . . . . . . . . . . . . . . . . . Feedback Blocked . | . . . . . . . . . . . . . . . . . . . Robot Schematics Acquired . | . . . . . . . . . . . . . . . . . . . Robots Built . | . . . . . . . . . . . . . . . . . . . Authchips . | . . . . . . . . . . . . . . . . . . . Time . | . . . . . . . . . . . . . . . . . . . Total Robot Build Rating . | . . . . . . . . . . . . . . . . . . . Part Schematics Acquired . | . . . . . . . . . . . . . . . . . . . Parts Built . | . . . . . . . . . . . . . . . . . . . Authchips . | . . . . . . . . . . . . . . . . . . . Time 106 | . . . . . . . . . 106 . . . . . . . . . Total Part Build Rating . | . . . . . . . . . . . . . . . . . . . Parts Repaired . | . . . . . . . . . . . . . . . . . . . Time . | . . . . . . . . . . . . . . . . . . . Parts Recycled . | . . . . . . . . . . . . . . . . . . . Recycled Matter . | . . . . . . . . . . . . . . . . . . . Retrieved Matter . | . . . . . . . . . . . . . . . . . . . Retrieved Components . | . . . . . . . . . . . . . . . . . . . Parts Scanalyzed . | . . . . . . . . . . . . . . . . . . . Part Schematics Acquired . | . . . . . . . . . . . . . . . . . . . Parts Damaged . | . . . . . . . . . . . . . . . . . . . Bothacking | -11 -10 -10 -9 -9 -9 -8 -8 -8 -7 -7 -7 -7 -6 -6 -5 -5 -5 -5 ------------ Run | Yrd Mat Min Mat Min Exi Min Mat Gar Fac Gar Fac Gar Fac Gar Fac Gar Fac Gar Used RIF Installer 6 | . . . . . . . . 1 . 2 . 1 . 1 . 1 . . Coupler Efficiency 1 | . . . . . . . . . . . . 1 . . . . . . Signal Jammer 1 | . . . . . . . . . . . . . . 1 . . . . Patrol Navigation 1 | . . . . . . . . . . 1 . . . . . . . . Alert ID Control 1 | . . . . . . . . . . . . . . . . 1 . . Structural Interface 1 | . . . . . . . . . . 1 . . . . . . . . Robots Hacked 26 | . . . . . . . . 2 1 . 1 2 . 3 10 7 . . Non-combat 5 | . . . . . . . . . 1 . 1 . . 1 2 . . . Combat 21 | . . . . . . . . 2 . . . 2 . 2 8 7 . . Robot Hacks Applied 28 | . . . . . . . . 2 2 . 1 2 . 3 11 7 . . drop_inventory 2 | . . . . . . . . . . . . . . . 2 . . . purge_threat 1 | . . . . . . . . . 1 . . . . . . . . . locate_traps 1 | . . . . . . . . . 1 . . . . . . . . . disarm_traps 1 | . . . . . . . . . . . 1 . . . . . . . find_garrison 1 | . . . . . . . . . . . . . . . 1 . . . reboot_system 1 | . . . . . . . . . . . . . . . 1 . . . go_dormant 2 | . . . . . . . . . . . . . . . 2 . . . overwrite_iff 9 | . . . . . . . . . . . . . . 2 4 3 . . streamctrl_high 2 | . . . . . . . . 1 . . . . . . . 1 . . formatsys_high 8 | . . . . . . . . 1 . . . 2 . 1 1 3 . . Relay Couplers Released 38 | . . . . . . . . 17 . 9 . . . . . 4 . 8 Machine Destruction 34 | . . . . . . . . 13 . 9 . . . . . 4 . 8 Programmers 4 | . . . . . . . . 4 . . . . . . . . . . Attached 19 | . . . . . . . . 3 1 4 1 . . 2 2 5 . 1 Fabnet Peak Effective % . | . . . . . . . . . . . . . . . . . . . Robots Rewired 10 | . . . . . . . . 3 1 . . . . . . . . 6 Allies Hacked . | . . . . . . . . . . . . . . . . . . . Hacks Repelled . | . . . . . . . . . . . . . . . . . . . Allies | -11 -10 -10 -9 -9 -9 -8 -8 -8 -7 -7 -7 -7 -6 -6 -5 -5 -5 -5 -------- Run | Yrd Mat Min Mat Min Exi Min Mat Gar Fac Gar Fac Gar Fac Gar Fac Gar Fac Gar Total Allies 35 | . . 1 . . . . . 5 1 2 . 4 . 3 5 8 . 6 Largest Group 6 | . . 1 1 . . . . 3 4 4 2 4 4 6 4 3 . 6 Highest-Rated Group 239 | . . 31 31 . . . . 85 104 124 124 188 188 239 75 116 . 183 Highest-Rated Ally 85 | . . 31 31 . . . . 85 32 62 62 62 62 62 49 49 . 49 Total Orders 3 | . . . . . . . . 1 . . . . . . . 2 . . STAY 1 | . . . . . . . . 1 . . . . . . . . . . EXPLORE 1 | . . . . . . . . . . . . . . . . 1 . . RETURN 1 | . . . . . . . . . . . . . . . . 1 . . Ally Attacks 185 | . . . 4 . . . . 6 4 15 11 13 . 31 19 33 . 49 Total Damage 4892 | . . . 84 . . . . 246 84 447 284 528 . 883 339 645 . 1352 Kills 48 | . . . 2 . . . . 2 2 4 1 8 . 14 2 6 . 7 Allies Corrupted 2 | . . . . . . . . 1 . . . . . . . 1 . . Allies Melted 2 | . . . . . . . . 1 . . . . . . . . . 1 Intel | -11 -10 -10 -9 -9 -9 -8 -8 -8 -7 -7 -7 -7 -6 -6 -5 -5 -5 -5 ------- Run | Yrd Mat Min Mat Min Exi Min Mat Gar Fac Gar Fac Gar Fac Gar Fac Gar Fac Gar Robot Analysis Total . | . . . . . . . . . . . . . . . . . . . Derelict Logs Recovered 2 | . . . . 2 . . . . . . . . . . . . . . Drone Launches 3 | . . . . . . . . . . . . . . . . 3 . . Drone Recoveries . | . . . . . . . . . . . . . . . . . . . Exploration | -11 -10 -10 -9 -9 -9 -8 -8 -8 -7 -7 -7 -7 -6 -6 -5 -5 -5 -5 ------------- Run | Yrd Mat Min Mat Min Exi Min Mat Gar Fac Gar Fac Gar Fac Gar Fac Gar Fac Gar Turns Passed 10495 | 2 903 137 1665 701 421 425 447 1381 192 719 207 678 57 372 609 388 268 923 Spaces Moved 6448 | 1 439 85 848 402 214 153 197 646 121 487 164 514 46 240 597 507 288 499 Core 192 | . . . . . . . . . . . . . . . 128 64 . . Treads 2875 | . 341 85 848 402 214 153 197 635 . . . . . . . . . . Legs 99 | 1 98 . . . . . . . . . . . . . . . . . Wheels 2186 | . . . . . . . . 11 121 487 164 514 46 240 201 . . 402 Hover 385 | . . . . . . . . . . . . . . . . . 288 97 Flight 711 | . . . . . . . . . . . . . . . 268 443 . . Fastest Speed 32 | 120 120 160 160 160 160 240 152 120 120 120 120 120 120 120 37 32 60 67 Average Speed 129 | 120 164 160 160 161 197 240 160 154 120 120 120 120 120 133 80 38 66 117 Slowest Speed 240 | 120 190 160 160 240 240 240 240 160 120 120 120 150 120 150 170 100 80 150 Overloaded Moves . | . . . . . . . . . . . . . . . . . . . Propulsion Burnouts . | . . . . . . . . . . . . . . . . . . . Robots Hopped 20 | . . . . . . . . . . . . . . . 10 10 . . Cave-ins Triggered . | . . . . . . . . . . . . . . . . . . . Exploration Rate (%) 44 | 2 70 33 85 87 60 41 29 70 7 77 8 77 2 48 19 64 11 58 Regions Visited 18 Branch Regions 4 Pre-discovered Areas 3 | . . . . 3 . . . . . . . . . . . . . . Known Exits Taken 7 | . . . 1 . . . 1 . 1 . 1 . 1 . 1 . 1 . Unknown Exits Taken 6 | 1 1 1 . 1 1 1 . . . . . . . . . . . . Scrap Searched 2 | . . . . 2 . . . . . . . . . . . . . . Spaces Dug 123 | . . . 1 . . . . 22 . 15 . 14 . 16 . . 2 53 Terrain Destroyed 551 | . . . 100 4 . . 64 127 . 63 . 43 . 48 7 . 2 93 Melee 29 | . . . 1 . . . . 20 . 4 . . . . . . 2 2 Projectile 1 | . . . . . . . . 1 . . . . . . . . . . AOE 521 | . . . 99 4 . . 64 106 . 59 . 43 . 48 7 . . 91 Terrain Rammed . | . . . . . . . . . . . . . . . . . . . Walls Destroyed . | . . . . . . . . . . . . . . . . . . . Machines Disabled . | . . . . . . . . . . . . . . . . . . . Actions | -11 -10 -10 -9 -9 -9 -8 -8 -8 -7 -7 -7 -7 -6 -6 -5 -5 -5 -5 --------- Run | Yrd Mat Min Mat Min Exi Min Mat Gar Fac Gar Fac Gar Fac Gar Fac Gar Fac Gar Total 7937 | 1 531 87 1041 426 214 200 272 913 164 586 172 566 47 279 692 683 350 713 Wait 555 | . 16 . 57 . . 42 30 85 29 1 3 10 . 11 40 127 39 65 Move 6402 | . 438 84 847 401 213 152 197 645 121 486 164 513 46 239 580 489 288 499 Hop 14 | . . . . . . . . . . . . . . . 7 7 . . Pick Up 79 | . 10 . 11 2 . . 1 22 . 7 . . . . 3 3 4 16 Fast Attach 71 | . 3 1 8 3 1 . 3 9 . 6 . 2 1 3 10 7 7 7 Attach 49 | . 2 . 7 3 . . 1 4 1 3 . 2 . 2 6 6 4 8 Detach 14 | . . 1 . . . . . 1 . . . 1 . . 1 3 1 6 Swap 68 | 1 . . 22 2 . . 6 17 1 3 2 3 . 3 7 . . 1 Drop 80 | . 4 1 17 . . . 1 25 . 11 . 2 . . 7 7 1 4 Fire 282 | . 56 . 65 13 . 6 32 19 2 15 3 9 . 13 29 9 . 11 Melee 148 | . . . 1 . . . . 65 1 14 . . . . 2 5 6 54 Ram 1 | . . . . . . . . . . . . . . . . 1 . . Kick . | . . . . . . . . . . . . . . . . . . . Crush 11 | . 2 . 6 2 . . 1 . . . . . . . . . . . Escape Stasis 97 | . . . . . . . . . . 40 . 24 . 8 . 18 . 7 Rewire 66 | . . . . . . . . 21 9 . . . . . . 1 . 35 Trap . | . . . . . . . . . . . . . . . . . . . Miscellaneous . | . . . . . . . . . . . . . . . . . . . Route ------- -11/Scrapyard -10/Materials (discovered 3 exits: *Mat x2 / *Min) -10/Mines -9/Materials (discovered 4 exits: *Mat x2 / *Min x2) -9/Mines (discovered 4 exits: *Mat x2 / *Exi / [*Zio]) -9/Exiles (discovered 2 exits: [*Min x2]) -8/Mines -8/Materials -8/Garrison (discovered 2 exits: *Fac x2) -7/Factory -7/Garrison (discovered 2 exits: *Fac x2) -7/Factory -7/Garrison (discovered 3 exits: *Fac x3) -6/Factory -6/Garrison (discovered 3 exits: *Fac x3) -5/Factory (discovered 3 exits: [*Fac] / [*Upp] / Gar) -5/Garrison (discovered 3 exits: *Fac x3) -5/Factory -5/Garrison (discovered 3 exits: [*Fac x3]) History --------- Turn | Location | Event 3 | -11/Scrapyard | Discovered new exit (range 0) 3 | -11/Scrapyard | Entered Materials 312 | -10/Materials | Build established: Mutant 332 | -10/Materials | Discovered new exit (range 8) 613 | -10/Materials | Discovered new exit (range 3) 754 | -10/Materials | Discovered new exit (range 7) 906 | -10/Materials | Entered Mines 912 | -10/Mines | Found the Drone Emporium 918 | -10/Mines | Found Prototype Device 918 | -10/Mines | Identified Thief Drone Bay 1032 | -10/Mines | Discovered new exit (range 8) 1037 | -10/Mines | Received a Mining Laser from a helpful Derelict 1043 | -10/Mines | Entered Materials 1043 | -9/Materials | Accompanied by 1 ally 1043 | -9/Materials | Evolved 2 slots: Utility x2 1500 | -9/Materials | Discovered new exit (range 8) 1855 | -9/Materials | Discovered new exit (range 15) 1867 | -9/Materials | Destroyed 8 combat bots 1873 | -9/Materials | Lost 5 parts (1p1n3u) 2033 | -9/Materials | Discovered new exit (range 13) 2037 | -9/Materials | Build established: Scavenger-Mutant 2234 | -9/Materials | Identified exit to Mines 2708 | -9/Materials | Entered Mines 2820 | -9/Mines | Assembled infested the area 2870 | -9/Mines | Learned location of Zion (-7) 2936 | -9/Mines | Core integrity fell below 50% 2974 | -9/Mines | Lost 6 parts (1p1n2u2w) 3058 | -9/Mines | A Derelict revealed a hidden shortcut to a safe place 3132 | -9/Mines | Discovered new exit (range 3) 3316 | -9/Mines | Discovered new exit (range 5) 3333 | -9/Mines | Learned location of Storage (-8) 3403 | -9/Mines | Deemed a non-threat by the Exiles lab entrance 3403 | -9/Mines | Discovered new exit (range 5) 3409 | -9/Mines | Entered Exiles 3435 | -9/Exiles | Discovered new exit (range 15) 3453 | -9/Exiles | Met 8R-AWN 3477 | -9/Exiles | Met EX-HEX 3518 | -9/Exiles | Met EX-BIN 3537 | -9/Exiles | Aligned with FarCom system 3539 | -9/Exiles | Given EX-Vault access code 3582 | -9/Exiles | Opened EX-Vault 3593 | -9/Exiles | Found Cloak of Protection 3643 | -9/Exiles | Warned to stay clear of 0b10 Research branches 3717 | -9/Exiles | Met EX-DEC 3799 | -9/Exiles | Discovered new exit (range 15) 3830 | -9/Exiles | Left Exiles lab with Cloak of Protection 3830 | -9/Exiles | Entered Mines 4219 | -8/Mines | Discovered new exit (range 13) 4255 | -8/Mines | Entered Materials 4255 | -8/Materials | Evolved 2 slots: Utility x2 4702 | -8/Materials | Identified exit to Garrison 4702 | -8/Materials | Entered Garrison 4780 | -8/Garrison | Installed Relay Interface Framework 4796 | -8/Garrison | Triggered checkpoint 4819 | -8/Garrison | Garrison Relay disabled 4974 | -8/Garrison | Triggered checkpoint 5042 | -8/Garrison | Triggered checkpoint 5124 | -8/Garrison | Build established: Bothacker-Mutant 5157 | -8/Garrison | Discovered new exit (range 13) 5264 | -8/Garrison | Triggered checkpoint 5510 | -8/Garrison | Triggered checkpoint 5553 | -8/Garrison | Spotted B-75 Beast 5558 | -8/Garrison | Hijacked Beast 3a control node with streamctrl_high 5574 | -8/Garrison | Destroyed Beast 3a 5683 | -8/Garrison | Spotted B-75 Beast 5689 | -8/Garrison | Triggered checkpoint 5699 | -8/Garrison | Destroyed B-75 Beast 5724 | -8/Garrison | Destroyed 8 combat bots 5724 | -8/Garrison | Discovered new exit (range 13) 5861 | -8/Garrison | Garrison Relay disabled 6083 | -8/Garrison | Entered Factory 6083 | -7/Factory | Accompanied by 3 allies 6083 | -7/Factory | Evolved 2 slots: Utility x2 6275 | -7/Factory | Identified exit to Garrison 6275 | -7/Factory | Entered Garrison 6275 | -7/Garrison | Accompanied by 4 allies 6341 | -7/Garrison | Expanded RIF knowledge: Structural Interface 6392 | -7/Garrison | Triggered checkpoint 6422 | -7/Garrison | Garrison Relay disabled 6448 | -7/Garrison | Garrison Relay disabled 6508 | -7/Garrison | Triggered checkpoint 6524 | -7/Garrison | Triggered checkpoint 6554 | -7/Garrison | Triggered checkpoint 6618 | -7/Garrison | Discovered new exit (range 9) 6621 | -7/Garrison | Found embedded Infiltrators 6824 | -7/Garrison | Discovered new exit (range 11) 6923 | -7/Garrison | Expanded RIF knowledge: Patrol Navigation 6952 | -7/Garrison | Garrison Relay disabled 6994 | -7/Garrison | Entered Factory 6994 | -7/Factory | Accompanied by 2 allies 7201 | -7/Factory | Identified exit to Garrison 7201 | -7/Factory | Entered Garrison 7228 | -7/Garrison | Triggered checkpoint 7286 | -7/Garrison | Expanded RIF knowledge: Coupler Efficiency 7408 | -7/Garrison | Triggered checkpoint 7445 | -7/Garrison | Found embedded Infiltrators 7516 | -7/Garrison | Triggered checkpoint 7519 | -7/Garrison | Learned Factory security intel 7572 | -7/Garrison | Triggered checkpoint 7578 | -7/Garrison | Discovered new exit (range 10) 7595 | -7/Garrison | Build established: Botlord-Mutant 7668 | -7/Garrison | Triggered checkpoint 7688 | -7/Garrison | Triggered checkpoint 7736 | -7/Garrison | Triggered checkpoint 7792 | -7/Garrison | Discovered new exit (range 4) 7821 | -7/Garrison | Discovered new exit (range 64) 7821 | -7/Garrison | Discovered new exit (range 23) 7821 | -7/Garrison | Discovered new exit (range 76) 7879 | -7/Garrison | Entered Factory 7879 | -6/Factory | Accompanied by 4 allies 7879 | -6/Factory | Evolved 2 slots: Utility x2 7936 | -6/Factory | Identified exit to Garrison 7936 | -6/Factory | Entered Garrison 7936 | -6/Garrison | Accompanied by 4 allies 7992 | -6/Garrison | Triggered checkpoint 8020 | -6/Garrison | Discovered new exit (range 11) 8053 | -6/Garrison | Expanded RIF knowledge: Signal Jamming 8116 | -6/Garrison | Triggered checkpoint 8198 | -6/Garrison | Triggered checkpoint 8228 | -6/Garrison | Discovered new exit (range 11) 8278 | -6/Garrison | Discovered new exit (range 15) 8278 | -6/Garrison | Discovered new exit (range 75) 8278 | -6/Garrison | Discovered new exit (range 56) 8308 | -6/Garrison | Entered Factory 8308 | -5/Factory | Accompanied by 2 allies 8308 | -5/Factory | Evolved 2 slots: Utility x2 8430 | -5/Factory | Lost 4 allies 8541 | -5/Factory | Discovered new exit (range 5) 8579 | -5/Factory | Discovered new exit (range 6) 8608 | -5/Factory | First assault squad dispatched 8737 | -5/Factory | Lost 5 parts (2n1u2w) 8917 | -5/Factory | Identified exit to Garrison 8917 | -5/Factory | Entered Garrison 8927 | -5/Garrison | Garrison Relay disabled 8960 | -5/Garrison | Triggered checkpoint 9036 | -5/Garrison | Spotted B-75 Beast 9053 | -5/Garrison | Triggered checkpoint 9106 | -5/Garrison | Lost 3 allies 9179 | -5/Garrison | Core integrity fell below 50% 9194 | -5/Garrison | Triggered checkpoint 9216 | -5/Garrison | Discovered new exit (range 10) 9225 | -5/Garrison | Rescued a captive Derelict 9227 | -5/Garrison | Lost 4 parts (2n2u) 9240 | -5/Garrison | Discovered new exit (range 65) 9240 | -5/Garrison | Discovered new exit (range 30) 9240 | -5/Garrison | Discovered new exit (range 22) 9256 | -5/Garrison | Triggered checkpoint 9280 | -5/Garrison | Triggered checkpoint 9280 | -5/Garrison | Lost 5 allies 9288 | -5/Garrison | Expanded RIF knowledge: Alert ID Control 9294 | -5/Garrison | Core integrity fell below 20% 9305 | -5/Garrison | Entered Factory 9326 | -5/Factory | Lost 4 parts (2n2u) 9573 | -5/Factory | Identified exit to Garrison 9573 | -5/Factory | Entered Garrison 9629 | -5/Garrison | Build established: Hacker-Mutant 9654 | -5/Garrison | Learned Factory security intel 9654 | -5/Garrison | Discovered new exit (range 32) 9654 | -5/Garrison | Discovered new exit (range 66) 9654 | -5/Garrison | Discovered new exit (range 79) 9744 | -5/Garrison | Garrison Relay disabled 9834 | -5/Garrison | Triggered checkpoint 9880 | -5/Garrison | Lost 3 allies 9936 | -5/Garrison | Lost 3 allies 9952 | -5/Garrison | Triggered checkpoint 9982 | -5/Garrison | Lost 3 parts (1p1n1u) 10050 | -5/Garrison | Triggered checkpoint 10053 | -5/Garrison | Triggered checkpoint 10174 | -5/Garrison | Triggered checkpoint 10231 | -5/Garrison | Build established: Scavenger-Mutant 10312 | -5/Garrison | Spotted Striker 10357 | -5/Garrison | Spotted B-75 Beast 10436 | -5/Garrison | Triggered checkpoint 10446 | -5/Garrison | System corruption reached 10% 10496 | -5/Garrison | Destroyed by B-75 Beast with Heavy Plasma Cannon Last Messages --------------- 10440_ Stasis field depleted. 10442_ Imp. Medium Armor Plating destroyed. 10443_ P-70 Sage Imp. Heat Sink severed. 10452_ Lyr. Light Armor Plating destroyed. 10453_ Mic. Fission Core melted. 10453_ P-70 Sage destroyed. 10454_ Acquired 60 matter. 10462_ Acquired Relay Coupler [NC]. 10464_ Acquired Relay Coupler [Demolisher]. 10467_ Acquired Relay Coupler [NC]. 10470_ Acquired Relay Coupler [Hunter]. 10473_ Dropped Arm. Wheel. 10474_ Acquired Relay Coupler [NC]. 10478_ Lrn. Missile Launcher destroyed. 10483_ Lyr. Light Armor Plating destroyed. 10486_ Med. Matter Pod destroyed. 10486_ Knocked back. 10492_ Imp. Medium Armor Plating destroyed. 10492_ Arm. Wheel destroyed. 10495_ System corrupted: Component data lost. Map ----- +----------------------------------------------------+ | | | | | | | | | ????????????????????????????????????? | | ????????????????????????????????????? | | ????????????????????????????????????? | | ????????????????????????????????????? | | ?????????????????###################? | | ?????????????????#""""" """ """""#? | | ?????????????????#" """ """ """ "#? | | ?????????????????#"" ""#? | | ?????????????????#"" ""#? | | ?????????????????#"" ""#? | | ????????######???# ! #? | | ????????#"# #???# #? | | ????????#" #???#"" ! ""#? | | ????????# =#???#"" ! ""#? | | ????????#" #???#"" ""#? | | ????????#"# %#???# #? | | ????????### ^###?# #? | | ??????????# !!%#?#"" ""#? | | ??????????# | =#?##" "##? | | ??????????# %% #??## ##?? | | ??????????#% ###???# #??? | | ??????????# @;#????####### ######??# | | ??????????#BB############# ######### | | ??????????#BB + | | ??????????# + | | ??????????#++######## < ######### ## | | ??????????# #??????# #???????# ## | | ??????????# #??????##+##???????# ## | | ??????????# #???????# ########## ## | | ??????????# #???????# + ## | | ??????????# #???????############ #? | | ??????????# #??????????????????# #? | | ??????????# #??????????????????# #? | | ??????????# #??????????????????# #? | | ???######## #??????????????????# #? | | ???#""""""# #??????????????????# #? | | ???#" "" "# #??????????????????# #? | | ???#" "" "# #??????????????????# #? | | ???#" "" "# #??????????????????# #? | | ???# ^ + #??????????????????# #? | | ???#" "" "# #??????????????????# #? | | ???#" "" "# #??????????????????# #? | | ???#" "" "# #??????????????????# #? | | ???#""""""# #################### ## | | ???######## + | | ??????????# + | +----------------------------------------------------+ Best States ------------- Heat Dissipation 40 Energy Generation 19 Energy Capacity 310 Matter Stores 400 Matter Capacity 400 Sight Range 16 Terrain Scan Density 110 Cloak Strength 5 Armor Coverage 750 Core Shielding 20 Power Shielding 66 Evasion (%) 63 Targeting Accuracy 6 Launcher Accuracy 30 Recoil Reduction 2 Offensive Hacking 24 Relay Coupler Types 5 Relay Coupler Value 167 Item Schematics ----------------- None Robot Schematics ------------------ None Fabricated ------------ Nothing Alien Tech Used ----------------- None Achievements -------------- None Challenges ------------ None Game ------ Seed SegregatorStormAutogun Manual? 0 Play Time 01:31:43 Cumulative 475.6 hours Start 2024.04.07 @ 09:53:33 End 2024.04.08 @ 10:15:21 Sessions 6 Manual Loads 0 Difficulty Rogue Special Mode None Game No. 522 Rogue 522 Adventurer 0 Explorer 0 Win Type - Total 14 Types 9/0/4/1/0/0/0/0/0 Lore% 82 Gallery% 90 Achievement% 82 Wizard Run 0 Options --------- Layout 0 ASCII 0 Keyboard 0 Movement Numpad Keybinds 0 Fullscreen 1 Font 18/SmallcapsGlow Map View 76x50 Zoom Use 0% Tactical HUD 1 Map Filters NONE Filters NONE Steam 1 RUN: 8ffca14b-726f-4333-bfd6-e36e25ac2920